fUST/lending_fUST_20260509
["ID","MTS","AMOUNT","RATE_DAILY","PERIOD"]
[421881433,1778272239000,-10151.87399684,0.000162,2]
[421881439,1778272239000,-151.0,0.000162,2]
[421881446,1778272239000,-3000.0,0.0001623,2]
[421881448,1778272239000,-3000.0,0.0001624,2]
[421881452,1778272239000,-3000.0,0.0001626,2]
[421881453,1778272239000,-3000.0,0.0001627,2]
[421881455,1778272239000,-3000.0,0.0001628,2]
[421881457,1778272239000,-3000.0,0.0001629,2]
[421881368,1778272239000,-154.43,0.00015819,2]
[421881450,1778272239000,-3000.0,0.0001625,2]
[421881420,1778272239000,-3000.0,0.0001616,2]
[421881416,1778272239000,-822.0,0.00016155,2]
[421881459,1778272239000,-1539.93576902,0.000163,2]
[421881414,1778272239000,-3000.0,0.0001615,2]
[421881418,1778272239000,-155.48,0.00016156,2]
[421881378,1778272239000,-403.39894563,0.00015957,2]
[421881377,1778272239000,-1105.345715,0.0001595,7]
[421881379,1778272239000,-154.61,0.00015962,2]
[421881380,1778272239000,-869.0081133,0.00015962,2]
[421881381,1778272239000,-8167.3327256,0.00015962,2]
[421881386,1778272239000,-1587.87472198,0.00016,2]
[421881382,1778272239000,-200.0,0.00015965,2]
[421881383,1778272239000,-1152.0,0.0001598,2]
[421881385,1778272239000,-1539.93576902,0.00016,2]
[421881384,1778272239000,-160.0,0.0001598,3]
[421881387,1778272239000,-161.58879827,0.00016,3]
[421881389,1778272239000,-151.0,0.00016,2]
[421881388,1778272239000,-3000.0,0.00016,2]
[421881402,1778272239000,-1587.87472198,0.000161,2]
[421881390,1778272239000,-1000.0,0.00016,2]
[421881393,1778272239000,-3000.0,0.0001603,2]
[421881398,1778272239000,-3000.0,0.0001608,2]
[421881399,1778272239000,-3000.0,0.0001609,2]
[421881395,1778272239000,-3000.0,0.0001605,2]
[421881397,1778272239000,-3000.0,0.0001607,2]
[421881404,1778272239000,-151.0,0.000161,2]
[421881396,1778272239000,-3000.0,0.0001606,2]
[421881392,1778272239000,-3000.0,0.0001602,2]
[421881400,1778272239000,-718.93104467,0.000161,2]
[421881401,1778272239000,-10151.87399684,0.000161,2]
[421881391,1778272239000,-3000.0,0.0001601,2]
[421881394,1778272239000,-3000.0,0.0001604,2]
[421881517,1778272240000,-235.975498,0.00016438,2]
[421881516,1778272240000,-235.975498,0.00016438,2]
[421881528,1778272240000,-151.0,0.00016438,2]
[421881527,1778272240000,-235.975506,0.00016438,2]
[421881525,1778272240000,-235.975498,0.00016438,2]
[421881513,1778272240000,-235.975498,0.00016438,2]
[421881514,1778272240000,-235.975498,0.00016438,2]
[421881511,1778272240000,-235.975498,0.00016438,2]
[421881518,1778272240000,-235.975498,0.00016438,2]
[421881526,1778272240000,-235.975498,0.00016438,2]
[421881512,1778272240000,-235.975498,0.00016438,2]
[421881540,1778272240000,-163.786091,0.00016438,2]
[421881519,1778272240000,-235.975498,0.00016438,2]
[421881522,1778272240000,-235.975498,0.00016438,2]
[421881523,1778272240000,-235.975498,0.00016438,2]
[421881521,1778272240000,-235.975498,0.00016438,2]
[421881530,1778272240000,-151.0,0.00016438,2]
[421881532,1778272240000,-151.0,0.00016438,2]
[421881529,1778272240000,-151.0,0.00016438,2]
[421881531,1778272240000,-151.0,0.00016438,2]
[421881536,1778272240000,-151.0,0.00016438,2]
[421881537,1778272240000,-151.0,0.00016438,2]
[421881534,1778272240000,-151.0,0.00016438,2]
[421881509,1778272240000,-235.975498,0.00016438,2]
[421881520,1778272240000,-235.975498,0.00016438,2]
[421881508,1778272240000,-235.975498,0.00016438,2]
[421881494,1778272240000,-10151.87399684,0.000164,2]
[421881504,1778272240000,-151.0,0.00016438,2]
[421881533,1778272240000,-151.0,0.00016438,2]
[421881461,1778272240000,-1587.87472198,0.000163,2]
[421881469,1778272240000,-3000.0,0.0001632,2]
[421881467,1778272240000,-3000.0,0.0001631,2]
[421881463,1778272240000,-3000.0,0.000163,2]
[421881465,1778272240000,-151.0,0.000163,2]
[421881473,1778272240000,-3000.0,0.0001634,2]
[421881471,1778272240000,-3000.0,0.0001633,2]
[421881486,1778272240000,-3000.0,0.0001635,2]
[421881490,1778272240000,-569.62,0.00016381,2]
[421881488,1778272240000,-4777.63407,0.0001636,2]
[421881492,1778272240000,-156.8,0.00016394,2]
[421881502,1778272240000,-270.0,0.00016438,2]
[421881503,1778272240000,-151.0,0.00016438,2]
[421881491,1778272240000,-200.0,0.0001639,2]
[421881497,1778272240000,-155.0,0.00016436,2]
[421881501,1778272240000,-417.12230439,0.00016438,2]
[421881499,1778272240000,-529.89651157,0.00016438,2]
[421881498,1778272240000,-1405.75175506,0.00016438,2]
[421881496,1778272240000,-151.0,0.000164,2]
[421881500,1778272240000,-1125.75,0.00016438,2]
[421881515,1778272240000,-235.975498,0.00016438,2]
[421881505,1778272240000,-151.0,0.00016438,2]
[421881507,1778272240000,-235.975498,0.00016438,2]
[421881506,1778272240000,-285.848548,0.00016438,2]
[421881510,1778272240000,-235.975498,0.00016438,2]
[421881539,1778272240000,-251.185991,0.00016438,2]
[421881573,1778272240000,-1378.692911,0.00016438,2]
[421881535,1778272240000,-151.0,0.00016438,2]
[421881577,1778272240000,-1378.692911,0.00016438,2]
[421881569,1778272240000,-230.305375,0.00016438,2]
[421881572,1778272240000,-1378.692911,0.00016438,2]
[421881570,1778272240000,-1378.692911,0.00016438,2]
[421881576,1778272240000,-1378.692911,0.00016438,2]
[421881575,1778272240000,-1378.692911,0.00016438,2]
[421881571,1778272240000,-1378.692911,0.00016438,2]
[421881574,1778272240000,-1378.692911,0.00016438,2]
[421881592,1778272240000,-284.030613,0.00016438,2]
[421881580,1778272240000,-1378.692911,0.00016438,2]
[421881590,1778272240000,-1378.692911,0.00016438,2]
[421881578,1778272240000,-1378.692911,0.00016438,2]
[421881579,1778272240000,-1378.692911,0.00016438,2]
[421881584,1778272240000,-1378.692911,0.00016438,2]
[421881585,1778272240000,-284.030613,0.00016438,2]
[421881589,1778272240000,-284.030613,0.00016438,2]
[421881582,1778272240000,-1378.692911,0.00016438,2]
[421881586,1778272240000,-1378.692911,0.00016438,2]
[421881587,1778272240000,-284.030613,0.00016438,2]
[421881588,1778272240000,-1378.692911,0.00016438,2]
[421881591,1778272240000,-1378.692911,0.00016438,2]
[421881593,1778272240000,-1378.692911,0.00016438,2]
[421881594,1778272240000,-284.030613,0.00016438,2]
[421881538,1778272240000,-151.0,0.00016438,2]
[421881583,1778272240000,-284.030613,0.00016438,2]
[421881568,1778272240000,-230.305366,0.00016438,2]
[421881581,1778272240000,-284.030613,0.00016438,2]
[421881567,1778272240000,-230.305366,0.00016438,2]
[421881566,1778272240000,-230.305366,0.00016438,2]
[421881541,1778272240000,-151.0,0.00016438,2]
[421881543,1778272240000,-151.0,0.00016438,2]
[421881546,1778272240000,-151.0,0.00016438,2]
[421881544,1778272240000,-151.0,0.00016438,2]
[421881542,1778272240000,-151.0,0.00016438,2]
[421881545,1778272240000,-151.0,0.00016438,2]
[421881549,1778272240000,-273.489961,0.00016438,2]
[421881550,1778272240000,-230.305366,0.00016438,2]
[421881547,1778272240000,-151.0,0.00016438,2]
[421881551,1778272240000,-230.305366,0.00016438,2]
[421881548,1778272240000,-152.484375,0.00016438,2]
[421881552,1778272240000,-230.305366,0.00016438,2]
[421881559,1778272240000,-230.305366,0.00016438,2]
[421881564,1778272240000,-230.305366,0.00016438,2]
[421881565,1778272240000,-230.305366,0.00016438,2]
[421881556,1778272240000,-230.305366,0.00016438,2]
[421881555,1778272240000,-230.305366,0.00016438,2]
[421881558,1778272240000,-230.305366,0.00016438,2]
[421881553,1778272240000,-230.305366,0.00016438,2]
[421881557,1778272240000,-230.305366,0.00016438,2]
[421881560,1778272240000,-230.305366,0.00016438,2]
[421881561,1778272240000,-230.305366,0.00016438,2]
[421881563,1778272240000,-230.305366,0.00016438,2]
[421881554,1778272240000,-230.305366,0.00016438,2]
[421881562,1778272240000,-230.305366,0.00016438,2]
[421881640,1778272241000,-175.98431,0.00016438,2]
[421881639,1778272241000,-214.017404,0.00016438,2]
[421881627,1778272241000,-214.017404,0.00016438,2]
[421881637,1778272241000,-175.98431,0.00016438,2]
[421881633,1778272241000,-214.017404,0.00016438,2]
[421881630,1778272241000,-214.017404,0.00016438,2]
[421881626,1778272241000,-151.0,0.00016438,2]
[421881642,1778272241000,-175.98431,0.00016438,2]
[421881641,1778272241000,-151.0,0.00016438,2]
[421881631,1778272241000,-175.98431,0.00016438,2]
[421881643,1778272241000,-214.017404,0.00016438,2]
[421881638,1778272241000,-151.0,0.00016438,2]
[421881632,1778272241000,-151.0,0.00016438,2]
[421881635,1778272241000,-151.0,0.00016438,2]
[421881652,1778272241000,-214.017404,0.00016438,2]
[421881634,1778272241000,-175.98431,0.00016438,2]
[421881645,1778272241000,-175.984312,0.00016438,2]
[421881644,1778272241000,-151.0,0.00016438,2]
[421881651,1778272241000,-214.017404,0.00016438,2]
[421881648,1778272241000,-214.017404,0.00016438,2]
[421881647,1778272241000,-210.570015,0.00016438,2]
[421881646,1778272241000,-214.017404,0.00016438,2]
[421881655,1778272241000,-214.017404,0.00016438,2]
[421881649,1778272241000,-214.017404,0.00016438,2]
[421881650,1778272241000,-214.017404,0.00016438,2]
[421881653,1778272241000,-214.017404,0.00016438,2]
[421881654,1778272241000,-214.017404,0.00016438,2]
[421881629,1778272241000,-151.0,0.00016438,2]
[421881636,1778272241000,-214.017404,0.00016438,2]
[421881624,1778272241000,-175.98431,0.00016438,2]
[421881599,1778272241000,-284.030613,0.00016438,2]
[421881622,1778272241000,-175.98431,0.00016438,2]
[421881595,1778272241000,-1378.692911,0.00016438,2]
[421881598,1778272241000,-284.030613,0.00016438,2]
[421881597,1778272241000,-1378.69291,0.00016438,2]
[421881657,1778272241000,-214.017404,0.00016438,2]
[421881600,1778272241000,-284.030613,0.00016438,2]
[421881596,1778272241000,-284.030613,0.00016438,2]
[421881602,1778272241000,-284.030613,0.00016438,2]
[421881601,1778272241000,-284.030613,0.00016438,2]
[421881603,1778272241000,-284.030613,0.00016438,2]
[421881605,1778272241000,-175.98431,0.00016438,2]
[421881604,1778272241000,-284.030613,0.00016438,2]
[421881615,1778272241000,-284.030615,0.00016438,2]
[421881616,1778272241000,-175.98431,0.00016438,2]
[421881606,1778272241000,-284.030613,0.00016438,2]
[421881607,1778272241000,-175.98431,0.00016438,2]
[421881609,1778272241000,-175.98431,0.00016438,2]
[421881613,1778272241000,-175.98431,0.00016438,2]
[421881611,1778272241000,-175.98431,0.00016438,2]
[421881608,1778272241000,-284.030613,0.00016438,2]
[421881614,1778272241000,-151.0,0.00016438,2]
[421881610,1778272241000,-284.030613,0.00016438,2]
[421881612,1778272241000,-284.030613,0.00016438,2]
[421881618,1778272241000,-175.98431,0.00016438,2]
[421881617,1778272241000,-151.0,0.00016438,2]
[421881619,1778272241000,-168.264219,0.00016438,2]
[421881625,1778272241000,-175.98431,0.00016438,2]
[421881621,1778272241000,-175.98431,0.00016438,2]
[421881623,1778272241000,-175.98431,0.00016438,2]
[421881628,1778272241000,-175.98431,0.00016438,2]
[421881620,1778272241000,-175.98431,0.00016438,2]
[421881666,1778272241000,-9949.972457,0.00016438,2]
[421881659,1778272241000,-214.017404,0.00016438,2]
[421881660,1778272241000,-214.017395,0.00016438,2]
[421881693,1778272241000,-9918.957665,0.00016438,2]
[421881695,1778272241000,-9949.972457,0.00016438,2]
[421881705,1778272241000,-9918.957665,0.00016438,2]
[421881696,1778272241000,-9918.957665,0.00016438,2]
[421881694,1778272241000,-691.619419,0.00016438,2]
[421881706,1778272241000,-691.61941,0.00016438,2]
[421881697,1778272241000,-691.619419,0.00016438,2]
[421881703,1778272241000,-691.619419,0.00016438,2]
[421881700,1778272241000,-691.619419,0.00016438,2]
[421881702,1778272241000,-9918.957665,0.00016438,2]
[421881698,1778272241000,-9949.972457,0.00016438,2]
[421881699,1778272241000,-9918.957665,0.00016438,2]
[421881701,1778272241000,-9949.972457,0.00016438,2]
[421881691,1778272241000,-691.619419,0.00016438,2]
[421881704,1778272241000,-9949.972457,0.00016438,2]
[421881711,1778272241000,-9918.957665,0.00016438,2]
[421881709,1778272241000,-9918.957665,0.00016438,2]
[421881710,1778272241000,-9949.972457,0.00016438,2]
[421881712,1778272241000,-9949.972457,0.00016438,2]
[421881708,1778272241000,-9949.972457,0.00016438,2]
[421881718,1778272241000,-9918.957665,0.00016438,2]
[421881715,1778272241000,-9949.972457,0.00016438,2]
[421881713,1778272241000,-9918.957665,0.00016438,2]
[421881719,1778272241000,-9918.957665,0.00016438,2]
[421881717,1778272241000,-9949.972465,0.00016438,2]
[421881716,1778272241000,-9918.957665,0.00016438,2]
[421881721,1778272241000,-9918.957667,0.00016438,2]
[421881720,1778272241000,-9918.957665,0.00016438,2]
[421881707,1778272241000,-9918.957665,0.00016438,2]
[421881692,1778272241000,-9949.972457,0.00016438,2]
[421881714,1778272241000,-9949.972457,0.00016438,2]
[421881690,1778272241000,-297.041558,0.00016438,2]
[421881682,1778272241000,-691.619419,0.00016438,2]
[421881661,1778272241000,-691.619419,0.00016438,2]
[421881662,1778272241000,-691.619419,0.00016438,2]
[421881656,1778272241000,-214.017404,0.00016438,2]
[421881667,1778272241000,-691.619419,0.00016438,2]
[421881664,1778272241000,-691.619419,0.00016438,2]
[421881668,1778272241000,-9949.972457,0.00016438,2]
[421881663,1778272241000,-691.619419,0.00016438,2]
[421881665,1778272241000,-691.619419,0.00016438,2]
[421881669,1778272241000,-691.619419,0.00016438,2]
[421881671,1778272241000,-691.619419,0.00016438,2]
[421881672,1778272241000,-9949.972457,0.00016438,2]
[421881670,1778272241000,-9949.972457,0.00016438,2]
[421881676,1778272241000,-691.619419,0.00016438,2]
[421881658,1778272241000,-214.017404,0.00016438,2]
[421881679,1778272241000,-691.619419,0.00016438,2]
[421881675,1778272241000,-9949.972457,0.00016438,2]
[421881687,1778272241000,-691.619419,0.00016438,2]
[421881688,1778272241000,-9949.972457,0.00016438,2]
[421881685,1778272241000,-9949.972457,0.00016438,2]
[421881683,1778272241000,-9918.957665,0.00016438,2]
[421881686,1778272241000,-9918.957665,0.00016438,2]
[421881684,1778272241000,-691.619419,0.00016438,2]
[421881680,1778272241000,-9918.957665,0.00016438,2]
[421881674,1778272241000,-9918.957665,0.00016438,2]
[421881681,1778272241000,-9949.972457,0.00016438,2]
[421881673,1778272241000,-691.619419,0.00016438,2]
[421881677,1778272241000,-9918.957665,0.00016438,2]
[421881689,1778272241000,-9918.957665,0.00016438,2]
[421881678,1778272241000,-9949.972457,0.00016438,2]
[421881749,1778272242000,-695.114582,0.00016438,2]
[421881752,1778272242000,-695.114582,0.00016438,2]
[421881756,1778272242000,-695.114582,0.00016438,2]
[421881755,1778272242000,-695.114582,0.00016438,2]
[421881748,1778272242000,-695.114582,0.00016438,2]
[421881754,1778272242000,-695.114582,0.00016438,2]
[421881751,1778272242000,-695.114582,0.00016438,2]
[421881753,1778272242000,-695.114582,0.00016438,2]
[421881759,1778272242000,-183.66946,0.00016438,2]
[421881761,1778272242000,-455.104378,0.00016438,2]
[421881750,1778272242000,-695.114582,0.00016438,2]
[421881766,1778272242000,-455.104378,0.00016438,2]
[421881760,1778272242000,-455.104378,0.00016438,2]
[421881768,1778272242000,-455.104378,0.00016438,2]
[421881767,1778272242000,-455.104378,0.00016438,2]
[421881763,1778272242000,-455.104378,0.00016438,2]
[421881764,1778272242000,-455.104378,0.00016438,2]
[421881774,1778272242000,-455.104378,0.00016438,2]
[421881772,1778272242000,-455.104378,0.00016438,2]
[421881775,1778272242000,-455.104378,0.00016438,2]
[421881773,1778272242000,-455.104378,0.00016438,2]
[421881757,1778272242000,-695.114577,0.00016438,2]
[421881770,1778272242000,-455.104378,0.00016438,2]
[421881762,1778272242000,-455.104378,0.00016438,2]
[421881758,1778272242000,-151.0,0.00016438,2]
[421881732,1778272242000,-151.0,0.00016438,2]
[421881746,1778272242000,-695.114582,0.00016438,2]
[421881778,1778272242000,-455.104378,0.00016438,2]
[421881731,1778272242000,-151.0,0.00016438,2]
[421881725,1778272242000,-151.0,0.00016438,2]
[421881724,1778272242000,-151.0,0.00016438,2]
[421881723,1778272242000,-151.0,0.00016438,2]
[421881722,1778272242000,-151.0,0.00016438,2]
[421881726,1778272242000,-151.0,0.00016438,2]
[421881730,1778272242000,-151.0,0.00016438,2]
[421881728,1778272242000,-151.0,0.00016438,2]
[421881729,1778272242000,-151.0,0.00016438,2]
[421881727,1778272242000,-151.0,0.00016438,2]
[421881747,1778272242000,-695.114582,0.00016438,2]
[421881734,1778272242000,-695.114582,0.00016438,2]
[421881740,1778272242000,-695.114582,0.00016438,2]
[421881737,1778272242000,-151.0,0.00016438,2]
[421881738,1778272242000,-695.114582,0.00016438,2]
[421881741,1778272242000,-695.114582,0.00016438,2]
[421881743,1778272242000,-695.114582,0.00016438,2]
[421881736,1778272242000,-695.114582,0.00016438,2]
[421881739,1778272242000,-151.0,0.00016438,2]
[421881735,1778272242000,-695.114582,0.00016438,2]
[421881742,1778272242000,-151.0,0.00016438,2]
[421881744,1778272242000,-247.09615,0.00016438,2]
[421881745,1778272242000,-695.114582,0.00016438,2]
[421881733,1778272242000,-213.983848,0.00016438,2]
[421881777,1778272242000,-455.104378,0.00016438,2]
[421881815,1778272242000,-336.360932,0.00016438,2]
[421881779,1778272242000,-2310.807064,0.00016438,2]
[421881808,1778272242000,-2310.807064,0.00016438,2]
[421881809,1778272242000,-336.360932,0.00016438,2]
[421881810,1778272242000,-4973.901523,0.00016438,2]
[421881814,1778272242000,-2310.807073,0.00016438,2]
[421881816,1778272242000,-4973.901523,0.00016438,2]
[421881813,1778272242000,-4973.901523,0.00016438,2]
[421881817,1778272242000,-336.360932,0.00016438,2]
[421881832,1778272242000,-173.35305942,0.00016438,2]
[421881821,1778272242000,-1957.77710784,0.00016438,2]
[421881819,1778272242000,-336.360932,0.00016438,2]
[421881818,1778272242000,-4973.901523,0.00016438,2]
[421881811,1778272242000,-2310.807064,0.00016438,2]
[421881823,1778272242000,-4973.901523,0.00016438,2]
[421881822,1778272242000,-336.360932,0.00016438,2]
[421881824,1778272242000,-336.360932,0.00016438,2]
[421881825,1778272242000,-4973.901523,0.00016438,2]
[421881826,1778272242000,-336.360932,0.00016438,2]
[421881828,1778272242000,-336.360932,0.00016438,2]
[421881829,1778272242000,-4973.901523,0.00016438,2]
[421881827,1778272242000,-4973.901523,0.00016438,2]
[421881831,1778272242000,-163.00787258,0.00016438,2]
[421881830,1778272242000,-336.360932,0.00016438,2]
[421881834,1778272242000,-38.76452195,0.00016438,2]
[421881833,1778272242000,-4973.901523,0.00016438,2]
[421881820,1778272242000,-3016.12441516,0.00016438,2]
[421881776,1778272242000,-455.104378,0.00016438,2]
[421881812,1778272242000,-336.360932,0.00016438,2]
[421881804,1778272242000,-336.360932,0.00016438,2]
[421881783,1778272242000,-2310.807064,0.00016438,2]
[421881784,1778272242000,-455.104378,0.00016438,2]
[421881780,1778272242000,-455.104378,0.00016438,2]
[421881782,1778272242000,-455.104378,0.00016438,2]
[421881785,1778272242000,-2310.807064,0.00016438,2]
[421881781,1778272242000,-2310.807064,0.00016438,2]
[421881786,1778272242000,-455.104368,0.00016438,2]
[421881787,1778272242000,-2310.807064,0.00016438,2]
[421881800,1778272242000,-336.360932,0.00016438,2]
[421881799,1778272242000,-4973.901523,0.00016438,2]
[421881789,1778272242000,-2310.807064,0.00016438,2]
[421881807,1778272242000,-336.360932,0.00016438,2]
[421881798,1778272242000,-2310.807064,0.00016438,2]
[421881791,1778272242000,-2310.807064,0.00016438,2]
[421881794,1778272242000,-2310.807064,0.00016438,2]
[421881795,1778272242000,-2310.807064,0.00016438,2]
[421881793,1778272242000,-2310.807064,0.00016438,2]
[421881797,1778272242000,-2310.807064,0.00016438,2]
[421881796,1778272242000,-2310.807064,0.00016438,2]
[421881801,1778272242000,-2310.807064,0.00016438,2]
[421881803,1778272242000,-2310.807064,0.00016438,2]
[421881806,1778272242000,-2310.807064,0.00016438,2]
[421881802,1778272242000,-4973.901523,0.00016438,2]
[421881805,1778272242000,-4973.901523,0.00016438,2]
[421881790,1778272242000,-2310.807064,0.00016438,2]
[421881835,1778272243000,-297.59641005,0.00016438,2]
[421881838,1778272243000,-4941.44643251,0.00016438,2]
[421881836,1778272243000,-4973.901523,0.00016438,2]
[421881837,1778272243000,-336.360932,0.00016438,2]
[421881874,1778272245000,-195.67273341,0.00016438,2]
[421881873,1778272245000,-336.360932,0.00016438,2]
[421881872,1778272245000,-32.45509049,0.00016438,2]
[421881870,1778272245000,-1337.79184081,0.000129,2]
[421881871,1778272245000,-215.05137661,0.00016338,2]
[421881883,1778272246000,-1443.25030795,0.00016438,2]
[421881882,1778272246000,-315.06596076,0.00016438,2]
[421881885,1778272423000,1348.07902167,0.00015877,120]
[421881884,1778272423000,1348.07902167,0.00015852,120]
[421881886,1778272424000,1348.07902167,0.00015903,120]
[421881887,1778272425000,1348.07902167,0.00015928,120]
[421881888,1778272425000,1348.07902167,0.00015953,120]
[421881946,1778273433000,-3331.7982655,0.00010555,2]
[421882006,1778273438000,-1000.0,0.00013699,2]
[421882008,1778273438000,-250.0,0.00013911,2]
[421882004,1778273438000,-1000.0,0.00013699,2]
[421882005,1778273438000,-588.236295,0.00013699,2]
[421882011,1778273438000,-804.70915437,0.00014305,2]
[421882010,1778273438000,-978.81114989,0.00014175,2]
[421882009,1778273438000,-196.16696846,0.00014044,7]
[421882019,1778273438000,-1411.0,0.00014338,2]
[421882014,1778273438000,-500.0,0.00014338,2]
[421882013,1778273438000,-196.16696846,0.00014318,7]
[421882017,1778273438000,-185.0,0.00014338,2]
[421882015,1778273438000,-500.0,0.00014338,2]
[421882016,1778273438000,-742.0,0.00014338,2]
[421882007,1778273438000,-248.08348422,0.00013824,7]
[421882018,1778273438000,-442.0,0.00014338,2]
[421882012,1778273438000,-365.85870633,0.00014305,2]
[421882003,1778273438000,-180.04321037,0.00013699,2]
[421881998,1778273438000,-160.0,0.00013393,2]
[421882002,1778273438000,-1049.13,0.00013698,2]
[421881985,1778273438000,-164.79716491,0.00010662,2]
[421881984,1778273438000,-88.07792581,0.00010662,2]
[421881983,1778273438000,-1668.2017345,0.00010555,2]
[421881987,1778273438000,-308.77659908,0.00010958,2]
[421881989,1778273438000,-191.22340092,0.00010958,2]
[421881990,1778273438000,-500.0,0.00011232,2]
[421881991,1778273438000,-500.0,0.00011506,2]
[421882000,1778273438000,-160.0,0.00013393,2]
[421881992,1778273438000,-500.0,0.0001178,2]
[421881993,1778273438000,-278.68268091,0.00012054,2]
[421882020,1778273438000,-2215.0,0.00014338,2]
[421881995,1778273438000,-300.0,0.00012905,2]
[421881996,1778273438000,-3475.56597564,0.00012906,2]
[421881997,1778273438000,-6524.43402436,0.00012906,2]
[421881999,1778273438000,-160.0,0.00013393,2]
[421882001,1778273438000,-161.58879827,0.00013393,2]
[421881994,1778273438000,-298.39260705,0.00012662,2]
[421882021,1778273438000,-647.0,0.00014338,2]
[421882050,1778273438000,-1879.96511068,0.00014899,2]
[421882022,1778273438000,-1914.76033698,0.00014405,2]
[421882045,1778273438000,-500.0,0.00014899,2]
[421882043,1778273438000,-1879.96511068,0.00014899,2]
[421882046,1778273438000,-500.0,0.00014899,2]
[421882048,1778273438000,-646.67444994,0.00014899,2]
[421882047,1778273438000,-1879.96511068,0.00014899,2]
[421882023,1778273438000,-500.0,0.00014612,2]
[421882052,1778273438000,-500.0,0.00014899,2]
[421882044,1778273438000,-1879.96511068,0.00014899,2]
[421882051,1778273438000,-500.0,0.00014899,2]
[421882053,1778273438000,-500.0,0.00014899,2]
[421882055,1778273438000,-500.0,0.00014899,2]
[421882057,1778273438000,-1879.96511068,0.00014899,2]
[421882058,1778273438000,-500.0,0.00014899,2]
[421882059,1778273438000,-1879.96511068,0.00014899,2]
[421882056,1778273438000,-500.0,0.00014899,2]
[421882060,1778273438000,-1879.96511068,0.00014899,2]
[421882054,1778273438000,-567.45901358,0.00014899,2]
[421882042,1778273438000,-1879.96511068,0.00014899,2]
[421882049,1778273438000,-500.0,0.00014899,2]
[421882039,1778273438000,-1879.96511068,0.00014899,2]
[421882041,1778273438000,-1879.96511068,0.00014899,2]
[421882024,1778273438000,-2850.70952408,0.00014635,2]
[421882026,1778273438000,-343.91012338,0.00014662,2]
[421882028,1778273438000,-500.0,0.00014886,2]
[421882027,1778273438000,-3146.23418084,0.00014865,2]
[421882029,1778273438000,-1049.13,0.00014898,2]
[421882030,1778273438000,-1049.13,0.00014898,2]
[421882033,1778273438000,-1879.96511068,0.00014899,2]
[421882025,1778273438000,-163.47247371,0.00014646,7]
[421882032,1778273438000,-463.19304653,0.00014899,2]
[421882034,1778273438000,-1879.96511068,0.00014899,2]
[421882036,1778273438000,-1879.96511068,0.00014899,2]
[421882035,1778273438000,-1879.96511068,0.00014899,2]
[421882037,1778273438000,-1879.96511068,0.00014899,2]
[421882038,1778273438000,-1879.96511068,0.00014899,2]
[421882040,1778273438000,-1879.96511068,0.00014899,2]
[421882031,1778273438000,-1049.13,0.00014898,2]
[421882074,1778273439000,-1049.13,0.00014899,2]
[421882072,1778273439000,-1049.13,0.00014899,2]
[421882071,1778273439000,-1049.13,0.00014899,2]
[421882066,1778273439000,-1973.96336621,0.00014899,2]
[421882068,1778273439000,-1973.96336621,0.00014899,2]
[421882070,1778273439000,-1973.96336621,0.00014899,2]
[421882065,1778273439000,-1973.96336621,0.00014899,2]
[421882067,1778273439000,-1973.96336621,0.00014899,2]
[421882064,1778273439000,-1973.96336621,0.00014899,2]
[421882062,1778273439000,-1973.96336621,0.00014899,2]
[421882063,1778273439000,-1973.96336621,0.00014899,2]
[421882061,1778273439000,-1879.96511068,0.00014899,2]
[421882073,1778273439000,-1049.13,0.00014899,2]
[421882069,1778273439000,-1973.96336621,0.00014899,2]
[421882076,1778273439000,-1049.13,0.00014899,2]
[421882091,1778273439000,-549699.46010296,0.000149,2]
[421882078,1778273439000,-1049.13,0.00014899,2]
[421882075,1778273439000,-1049.13,0.00014899,2]
[421882090,1778273439000,-1049.26304966,0.00014899,2]